[Event "World Junior U20 Open 2018"]
[Site "Gebze"]
[Date "2018.09.07"]
[Round "3.54"]
[White "Nurgaliyev, Sauat"]
[Black "Shailesh, Dravid"]
[Result "0-1"]
[ECO "E62"]
[WhiteElo "1685"]
[BlackElo "2325"]
[Annotator "NA"]
[PlyCount "64"]
[EventDate "2018.09.05"]
[EventType "swiss"]
[EventCountry "TUR"]
[SourceTitle "playchess.com"]
[Source "ChessBase"]
[SourceQuality "1"]
[TimeControl "40/5400+30:1800+30"]

1. Nf3 {[%emt 0:00:30]} Nf6 {[%emt 0:00:30]} 2. d4 {[%emt 0:00:00]} g6 {[%emt 0:00:00]} 3. g3 {[%emt 0:01:00]} Bg7 {[%emt 0:00:00]} 4. Bg2 {[%emt 0:00:00]} O-O {[%emt 0:00:00]} 5. O-O {[%emt 0:00:00]} d6 {[%emt 0:00:00]} 6. c4 {[%emt 0:00:30]} Nc6 {[%emt 0:00:30]} 7. Nc3 {[%emt 0:01:30]} Bf5 {[%emt 0:00:00]} 8. Nh4 {[%emt 0:01:30]} Bd7 {[%emt 0:01:00]} 9. e4 {[%emt 0:01:30]} e5 {[%emt 0:01:30]} 10. d5 {[%emt 0:07:30]} Nd4 {[%emt 0:02:30]} 11. f4 {[%emt 0:06:30]} Bg4 {[%emt 0:01:30]} 12. Qd3 {[%emt 0:01:30]} Nd7 {[%emt 0:04:30]} 13. Be3 {[%emt 0:12:30]} Nc5 {[%emt 0:00:30]} (13... c5 $11 {keeps the balance.}) 14. Qd2 {[%emt 0:02:30]} f5 {[%emt 0:03:30]} 15. h3 {[%emt 0:10:30]} Bh5 {[%emt 0:00:00]} 16. exf5 {[%emt 0:04:30]} gxf5 {[%emt 0:01:00]} 17. fxe5 {[%emt 0:06:30]} dxe5 {[%emt 0:00:30]} 18. Bxd4 $16 {[%emt 0:02:30]} exd4 {[%emt 0:00:30]} 19. Nb5 {[%emt 0:02:30]} f4 {[%emt 0:16:30]} 20. Rxf4 {[%emt 0:02:30]} Bh6 {[%emt 0:00:30]} 21. Rxf8+ {[%emt 0:00:30]} Qxf8 {[%emt 0:00:00]} 22. Qxd4 {[%emt 0:03:30]} Re8 {[%emt 0:00:00]} 23. Kh2 {[%emt 0:01:30]} Be3 {[%emt 0:02:30]} 24. Qc3 {[%emt 0:00:30]} Bf2 {[%emt 0:01:30]} 25. g4 {[%emt 0:16:38]} Qf4+ {[%emt 0:02:30]} 26. Kh1 {[%emt 0:00:10]} Re3 {[%emt 0:00:30]} 27. Qc2 {[%emt 0:01:26]} Ne4 {[%emt 0:00:30]} 28. Nf5 {[%emt 0:03:09]} Bxg4 {[%emt 0:00:30]} 29. hxg4 {[%emt 0:10:25]} Ng3+ {[%emt 0:00:30]} 30. Nxg3 {[%emt 0:00:09]} Qxg3 {[%emt 0:00:30]} 31. d6 {[%emt 0:01:28]} Qh4+ {[%emt 0:00:00]} 32. Bh3 {[%emt 0:00:08]} Qxh3# {[%emt 0:00:00]} 0-1

[Event "World Junior U20 Open 2018"]
[Site "Gebze"]
[Date "2018.09.07"]
[Round "3.56"]
[White "Huber, Martin Christian"]
[Black "Liyanage, Ranindu Dilshan"]
[Result "0-1"]
[ECO "D31"]
[WhiteElo "2390"]
[BlackElo "1989"]
[Annotator "NA"]
[PlyCount "84"]
[EventDate "2018.09.05"]
[EventType "swiss"]
[EventCountry "TUR"]
[SourceTitle "playchess.com"]
[Source "ChessBase"]
[SourceQuality "1"]
[TimeControl "40/5400+30:1800+30"]

1. d4 {[%emt 0:00:30]} d5 {[%emt 0:00:30]} 2. c4 {[%emt 0:00:00]} e6 {[%emt 0:00:00]} 3. Nc3 {[%emt 0:00:00]} a6 {[%emt 0:00:00]} 4. cxd5 {[%emt 0:01:30]} exd5 {[%emt 0:00:30]} 5. Bf4 {[%emt 0:00:00] D31: Queen's Gambit Declined: Semi-Slav without ...Nf6 (+ Marshall Gambit and Noteboom) and Exchange Variation lines without ...Nf6} Nf6 {[%emt 0:00:30]} 6. e3 {[%emt 0:01:00]} Bd6 {[%emt 0:00:30]} 7. Bg5 {[%emt 0:01:30]} c6 {[%emt 0:04:30]} 8. Bd3 {[%emt 0:00:30]} O-O {[%emt 0:00:30]} 9. Qc2 {[%emt 0:01:30]} h6 {[%emt 0:00:30]} 10. Bh4 {[%emt 0:00:30]} Re8 $146 {[%emt 0:01:30]} ({Predecessor:} 10... Be6 11. Nge2 Re8 12. O-O-O Nbd7 {1-0 (48) Salem,A (2656)-Vitiugov,N (2726) Doha 2016}) 11. Nf3 {[%emt 0:02:30]} Bg4 {[%emt 0:08:30]} 12. O-O-O {[%emt 0:08:30]} Nbd7 {[%emt 0:06:30]} 13. Kb1 {[%emt 0:00:30]} Qa5 {[%emt 0:03:30]} 14. h3 {[%emt 0:05:30]} Be6 {[%emt 0:05:30]} 15. Bxf6 {[%emt 0:09:30]} Nxf6 {[%emt 0:02:30]} 16. g4 {[%emt 0:00:30]} c5 {[%emt 0:13:30]} 17. dxc5 {[%emt 0:03:30]} Bxc5 {[%emt 0:00:30]} 18. g5 {[%emt 0:00:30]} hxg5 {[%emt 0:00:30]} 19. Nxg5 $11 {[%emt 0:00:30]} Bb4 {[%emt 0:03:30]} 20. Ne2 {[%emt 0:04:30]} Rac8 {[%emt 0:03:30]} 21. Qb3 {[%emt 0:00:00]} Bd7 {[%emt 0:01:30]} 22. a3 {[%emt 0:04:00]} Be7 {[%emt 0:05:30]} 23. Rc1 {[%emt 0:05:30]} Ba4 {[%emt 0:03:30]} 24. Qa2 {[%emt 0:04:30]} Qd2 {[%emt 0:07:30]} 25. Nf4 {[%emt 0:00:30]} Qxf2 {[%emt 0:03:30]} 26. Rcf1 {[%emt 0:20:30]} Bc2+ {[%emt 0:05:30]} 27. Ka1 {[%emt 0:00:30]} Qxe3 {[%emt 0:01:27]} 28. Rf3 {[%emt 0:16:16]} Qd2 {[%emt 0:02:56]} 29. Bxc2 {[%emt 0:00:50]} Rxc2 {[%emt 0:00:21]} 30. Qb3 {[%emt 0:00:33]} Rc1+ {[%emt 0:00:33]} 31. Rxc1 {[%emt 0:00:36]} Qxc1+ {[%emt 0:00:02]} 32. Ka2 {[%emt 0:00:00]} Qc4 {[%emt 0:00:16]} 33. h4 {[%emt 0:01:24]} Bd6 {[%emt 0:01:26]} 34. Ng2 {[%emt 0:00:16]} Re2 {[%emt 0:01:53]} 35. Ne3 {[%emt 0:00:42]} Qxb3+ {[%emt 0:00:44]} 36. Kxb3 {[%emt 0:00:05]} Ne4 {[%emt 0:00:00]} 37. Nxe4 {[%emt 0:04:05]} dxe4 {[%emt 0:00:26]} 38. Rh3 {[%emt 0:00:00]} Be5 {[%emt 0:02:15]} 39. Nc4 {[%emt 0:00:00]} Bd4 {[%emt 0:00:00]} 40. Nd6 {[%emt 0:00:00]} b5 {[%emt 0:00:00]} 41. Kb4 {[%emt 0:01:13]} Rxb2+ {[%emt 0:01:11]} 42. Ka5 {[%emt 0:00:00]} e3 {[%emt 0:00:30]} 0-1

[Event "World Junior U20 Open 2018"]
[Site "Gebze"]
[Date "2018.09.07"]
[Round "3.58"]
[White "Wong, Yinn Long"]
[Black "Zarubitski, Viachaslau"]
[Result "1-0"]
[ECO "B24"]
[WhiteElo "2261"]
[BlackElo "2425"]
[Annotator "NA"]
[PlyCount "148"]
[EventDate "2018.09.05"]
[EventType "swiss"]
[EventCountry "TUR"]
[SourceTitle "playchess.com"]
[Source "ChessBase"]
[SourceQuality "1"]
[TimeControl "40/5400+30:1800+30"]

1. e4 {[%emt 0:00:30] Babula,V} c5 {[%emt 0:00:30]} 2. Nc3 {[%emt 0:00:30]} Nc6 {[%emt 0:00:00]} 3. Nge2 {[%emt 0:01:30]} g6 {[%emt 0:02:00]} 4. g3 {[%emt 0:04:30]} Bg7 {[%emt 0:00:30]} 5. Bg2 {[%emt 0:00:30]} e6 {[%emt 0:02:30]} 6. d3 {[%emt 0:00:30]} Nge7 {[%emt 0:00:30]} 7. Bg5 {[%emt 0:01:30]} h6 {[%emt 0:00:30] B24: Closed Sicilian: 3 g3 sidelines} 8. Be3 {[%emt 0:00:30]} Nd4 {[%emt 0:00:30]} 9. Qd2 {[%emt 0:00:30]} Nec6 {[%emt 0:01:30]} 10. O-O {[%emt 0:12:30]} d6 {[%emt 0:00:30]} 11. a3 $146 {[%emt 0:05:30]} ({Predecessor:} 11. Rab1 Rb8 12. a3 a5 13. a4 Nb4 14. Bxd4 cxd4 15. Nb5 Nc6 16. c3 dxc3 17. bxc3 O-O {1-0 (64) Minasian,A (2574)-Petrosian,T (2558) Yerevan 2006 CBM 112 [Babula,V]}) 11... h5 {[%emt 0:10:30]} 12. h3 {[%emt 0:11:30]} Nxe2+ {[%emt 0:02:30]} 13. Qxe2 {[%emt 0:00:30]} Rb8 {[%emt 0:16:30]} 14. f4 {[%emt 0:10:30]} O-O {[%emt 0:03:30]} 15. Qd2 {[%emt 0:07:30]} Nd4 {[%emt 0:03:30]} 16. Rae1 {[%emt 0:02:30]} b5 {[%emt 0:00:30]} 17. Nd1 {[%emt 0:11:30]} Qc7 {[%emt 0:10:30]} 18. c3 {[%emt 0:02:30]} Nc6 {[%emt 0:00:00]} 19. g4 {[%emt 0:02:30]} hxg4 {[%emt 0:00:00]} 20. hxg4 {[%emt 0:00:00]} f5 {[%emt 0:00:30]} 21. exf5 {[%emt 0:05:36]} gxf5 {[%emt 0:00:30]} 22. gxf5 {[%emt 0:00:04]} Rxf5 {[%emt 0:00:30]} 23. Be4 {[%emt 0:01:29]} Ne7 {[%emt 0:03:30]} 24. Bxf5 {[%emt 0:04:51]} Nxf5 {[%emt 0:00:00]} 25. Qh2 {[%emt 0:00:23]} Bb7 {[%emt 0:01:00]} 26. Bf2 {[%emt 0:01:36]} Bf6 {[%emt 0:14:30]} 27. Bg3 {[%emt 0:05:23]} Kg7 {[%emt 0:01:30]} 28. Qh3 {[%emt 0:03:58]} Rh8 {[%emt 0:14:57]} 29. Qg4+ {[%emt 0:00:01]} Kf7 {[%emt 0:00:00]} 30. Kf2 {[%emt 0:00:18]} Qc6 {[%emt 0:03:51]} 31. Rg1 {[%emt 0:00:58]} Qd5 {[%emt 0:00:00]} 32. Ne3 {[%emt 0:00:22]} Qxd3 {[%emt 0:00:56]} 33. Nxf5 {[%emt 0:00:14]} exf5 {[%emt 0:00:15]} 34. Qd1 {[%emt 0:01:41]} Qxd1 {[%emt 0:05:16]} 35. Rxd1 {[%emt 0:00:30]} Ke6 {[%emt 0:00:30]} 36. Ke3 {[%emt 0:00:30]} a5 {[%emt 0:00:30]} 37. Rd2 {[%emt 0:00:30]} d5 {[%emt 0:01:12]} 38. Re1 {[%emt 0:02:01]} b4 {[%emt 0:01:17]} 39. axb4 {[%emt 0:01:18]} axb4 {[%emt 0:00:30]} 40. cxb4 {[%emt 0:00:00]} cxb4 {[%emt 0:00:00]} 41. Kd3+ {[%emt 0:10:17]} Kd6 {[%emt 0:02:46]} 42. Bf2 {[%emt 0:04:20]} b3 {[%emt 0:14:26]} 43. Ra1 {[%emt 0:03:40]} Rh3+ {[%emt 0:02:10]} 44. Ke2 {[%emt 0:00:19]} Rh2 {[%emt 0:01:48]} 45. Kd3 {[%emt 0:04:56]} Rh3+ {[%emt 0:04:07]} 46. Ke2 {[%emt 0:00:05]} Rh8 {[%emt 0:05:03]} 47. Ra3 {[%emt 0:03:28]} Rb8 {[%emt 0:02:20]} 48. Bd4 {[%emt 0:05:54]} Re8+ {[%emt 0:01:11]} 49. Kd1 {[%emt 0:02:10]} (49. Kf2 $16 Bxd4+ 50. Rxd4) 49... Bxd4 {[%emt 0:01:54]} 50. Rxd4 {[%emt 0:00:30]} Re4 {[%emt 0:00:26]} 51. Rxe4 $18 {[%emt 0:00:23]} (51. Rxb3 $4 {[%emt 0:00:23][%mdl 8192]}) 51... fxe4 {[%emt 0:00:30]} 52. Rxb3 {[%emt 0:00:30]} Bc8 {[%emt 0:00:30]} 53. Kd2 {[%emt 0:00:30]} d4 {[%emt 0:00:00]} 54. Rb8 {[%emt 0:02:37]} Bf5 {[%emt 0:00:27]} 55. Re8 {[%emt 0:00:37]} e3+ {[%emt 0:01:30]} 56. Ke2 {[%emt 0:00:05]} Be6 {[%emt 0:00:29]} 57. Kd3 $18 {[%emt 0:01:45]} Kd5 {[%emt 0:00:00]} 58. Rf8 {[%emt 0:00:24]} Kc5 {[%emt 0:00:39]} 59. b4+ {[%emt 0:00:58]} Kxb4 {[%emt 0:00:03]} 60. Kxd4 {[%emt 0:00:00]} e2 {[%emt 0:00:30]} 61. Rb8+ {[%emt 0:00:00]} Ka5 {[%emt 0:01:38]} 62. Rb1 {[%emt 0:00:23]} Bf5 {[%emt 0:00:00]} 63. Re1 {[%emt 0:00:08]} Bg4 {[%emt 0:00:00]} 64. Ke5 {[%emt 0:01:09]} Kb6 {[%emt 0:00:00]} 65. Rc1 {[%emt 0:00:22]} Bh5 {[%emt 0:01:25]} 66. f5 {[%emt 0:00:30]} Bf7 {[%emt 0:00:00]} 67. Re1 {[%emt 0:00:51]} Bc4 {[%emt 0:00:00]} 68. f6 {[%emt 0:00:05]} Kc7 {[%emt 0:00:00]} 69. Rxe2 {[%emt 0:00:15]} Kd7 {[%emt 0:00:00]} 70. Re4 {[%emt 0:00:09]} Bg8 {[%emt 0:00:31]} 71. Kf4 {[%emt 0:00:38]} Kd6 {[%emt 0:00:22]} 72. Kg5 {[%emt 0:00:30]} Ba2 {[%emt 0:00:01]} 73. Re1 {[%emt 0:00:12]} Bf7 {[%emt 0:00:33]} 74. Kh6 {[%emt 0:00:15]} Kd5 {[%emt 0:00:30]} 1-0

[Event "World Junior U20 Open 2018"]
[Site "Gebze"]
[Date "2018.09.07"]
[Round "3.59"]
[White "Noboa, Kevin"]
[Black "Macovei, Andrei"]
[Result "0-1"]
[ECO "E49"]
[WhiteElo "2256"]
[BlackElo "2385"]
[Annotator "NA"]
[PlyCount "106"]
[EventDate "2018.09.05"]
[EventType "swiss"]
[EventCountry "TUR"]
[SourceTitle "playchess.com"]
[Source "ChessBase"]
[SourceQuality "1"]
[TimeControl "40/5400+30:1800+30"]

1. d4 {[%emt 0:04:30]} Nf6 {[%emt 0:01:30]} 2. c4 {[%emt 0:00:30]} e6 {[%emt 0:00:30]} 3. Nc3 {[%emt 0:00:00]} Bb4 {[%emt 0:00:00]} 4. e3 {[%emt 0:00:00]} O-O {[%emt 0:00:00]} 5. Bd3 {[%emt 0:00:30]} d5 {[%emt 0:01:30]} 6. a3 {[%emt 0:00:30]} Bxc3+ {[%emt 0:05:30]} 7. bxc3 {[%emt 0:00:30]} dxc4 {[%emt 0:00:30]} 8. Bxc4 {[%emt 0:00:30]} c5 {[%emt 0:00:30]} 9. Ne2 {[%emt 0:00:30]} Qc7 {[%emt 0:05:30]} 10. Ba2 {[%emt 0:00:30]} Nbd7 {[%emt 0:13:30]} (10... b6 $142) 11. O-O {[%emt 0:02:30]} b6 {[%emt 0:00:00] E49: Nimzo-Indian: Rubinstein: 5 Bd3 d5 6 a3 Bxc3+ 7 bxc3} 12. f3 {[%emt 0:09:30]} Ba6 {[%emt 0:04:00]} 13. Bb2 {[%emt 0:15:30]} Rfd8 {[%emt 0:03:30] [#]} 14. Re1 $146 {[%emt 0:17:30]} ({Predecessor:} 14. Rf2 Rac8 15. Qe1 Qb8 16. Rd1 cxd4 17. cxd4 Bc4 18. Bb1 Bb3 19. Rc1 b5 20. Rxc8 Rxc8 {1-0 (63) Granda Zuniga,J (2631)-Kogan,A (2563) Sort 2006}) 14... Qc6 {[%emt 0:10:30]} 15. Qb3 {[%emt 0:10:30]} Rac8 {[%emt 0:14:30]} 16. Rac1 {[%emt 0:01:30]} b5 {[%emt 0:01:30]} 17. Bb1 {[%emt 0:13:30]} Nb6 {[%emt 0:02:30]} 18. Rcd1 {[%emt 0:00:30]} Nc4 {[%emt 0:04:30]} 19. Bc1 {[%emt 0:00:37]} e5 {[%emt 0:06:30]} 20. Bf5 {[%emt 0:09:48]} Rb8 {[%emt 0:00:30]} 21. Kh1 {[%emt 0:01:45]} e4 {[%emt 0:02:30]} 22. Bxe4 {[%emt 0:02:15]} Nxe4 {[%emt 0:00:00]} 23. fxe4 {[%emt 0:00:00]} Nd6 {[%emt 0:04:31]} 24. Ng3 {[%emt 0:04:23]} Nxe4 {[%emt 0:00:41]} 25. Nxe4 {[%emt 0:00:46]} Qxe4 {[%emt 0:00:14]} 26. Rf1 {[%emt 0:01:16]} c4 {[%emt 0:02:21]} 27. Qb2 {[%emt 0:00:05]} Bb7 {[%emt 0:00:56]} 28. Rf4 {[%emt 0:00:11]} Qg6 {[%emt 0:00:17]} 29. Qf2 {[%emt 0:02:43]} Be4 {[%emt 0:00:54]} 30. Bd2 {[%emt 0:00:19]} Rd5 {[%emt 0:01:08]} 31. Rf1 {[%emt 0:01:15]} Rf8 {[%emt 0:01:46]} 32. h4 {[%emt 0:00:52]} Bd3 {[%emt 0:05:14]} 33. Rg1 {[%emt 0:00:36]} Be4 {[%emt 0:01:59]} 34. Kh2 {[%emt 0:00:23]} h5 {[%emt 0:01:07]} 35. Qg3 {[%emt 0:00:17]} Qe6 {[%emt 0:00:35]} 36. Rgf1 {[%emt 0:00:36]} f5 {[%emt 0:01:44]} 37. Qg5 {[%emt 0:01:07]} Qe8 {[%emt 0:00:30]} 38. Qg3 {[%emt 0:00:30]} Rf6 {[%emt 0:00:30]} 39. Qe1 {[%emt 0:00:10]} Rg6 {[%emt 0:02:07]} 40. Rg1 {[%emt 0:00:00]} Qe7 {[%emt 0:00:00]} 41. Bc1 {[%emt 0:06:36]} a5 {[%emt 0:04:26]} 42. Qe2 {[%emt 0:05:30]} Rg4 {[%emt 0:00:30]} 43. Rxg4 {[%emt 0:04:51]} hxg4 $19 {[%emt 0:00:30]} 44. Qf2 {[%emt 0:00:45]} Rd6 {[%emt 0:04:30]} 45. Rh1 {[%emt 0:01:45]} Rh6 {[%emt 0:02:30]} 46. Kg1 {[%emt 0:01:09]} b4 {[%emt 0:00:30]} 47. axb4 {[%emt 0:01:47]} axb4 {[%emt 0:00:00]} 48. cxb4 {[%emt 0:00:09]} Qxb4 {[%emt 0:00:00]} 49. Qd2 {[%emt 0:00:32]} Qxd2 {[%emt 0:04:30]} 50. Bxd2 {[%emt 0:00:30]} Ra6 {[%emt 0:00:30]} 51. Be1 {[%emt 0:03:51]} Ra2 {[%emt 0:00:30]} 52. Rh2 {[%emt 0:04:37]} Ra1 {[%emt 0:00:00]} 53. Kf1 {[%emt 0:01:20]} g3 {[%emt 0:00:00]} 0-1

[Event "World Junior U20 Open 2018"]
[Site "Gebze"]
[Date "2018.09.07"]
[Round "3.60"]
[White "Murphy, Conor E"]
[Black "Rodrigue-Lemieux, Shawn"]
[Result "0-1"]
[ECO "B15"]
[WhiteElo "2357"]
[BlackElo "2250"]
[Annotator "NA"]
[PlyCount "62"]
[EventDate "2018.09.05"]
[EventType "swiss"]
[EventCountry "TUR"]
[SourceTitle "playchess.com"]
[Source "ChessBase"]
[SourceQuality "1"]
[TimeControl "40/5400+30:1800+30"]

1. e4 {[%emt 0:04:30]} c6 {[%emt 0:00:30]} 2. d4 {[%emt 0:00:30]} d5 {[%emt 0:00:00]} 3. Nd2 {[%emt 0:00:00]} dxe4 {[%emt 0:00:00]} 4. Nxe4 {[%emt 0:00:00]} Nf6 {[%emt 0:00:30]} 5. Nxf6+ {[%emt 0:00:00]} exf6 {[%emt 0:00:00]} 6. c3 {[%emt 0:00:00]} Bd6 {[%emt 0:00:00]} 7. Bd3 {[%emt 0:00:30]} O-O {[%emt 0:00:00]} 8. Ne2 {[%emt 0:00:00]} Re8 {[%emt 0:01:00]} 9. Qc2 {[%emt 0:00:00]} g6 {[%emt 0:02:30]} 10. h4 {[%emt 0:00:30]} Nd7 {[%emt 0:05:30]} 11. h5 {[%emt 0:01:30]} Nf8 {[%emt 0:00:30]} 12. Bh6 {[%emt 0:01:30]} f5 {[%emt 0:08:30] B15: Caro-Kann (Flohr-Variante)} 13. O-O-O {[%emt 0:09:30]} Be6 {[%emt 0:07:30] [#]} 14. Nf4 $146 {[%emt 0:12:30]} ({Vorgänger:} 14. Kb1 b5 15. f3 Qd7 16. Nf4 Bxf4 17. Bxf4 a5 18. Ka1 Qd5 19. b3 a4 20. b4 a3 {1-0 (51) Savchenko,B (2602)-Annaberdiyev,B (2223) Kesan 2017}) 14... g5 {[%emt 0:09:30]} 15. g3 {[%emt 0:31:30]} gxf4 {[%emt 0:23:30]} 16. gxf4 {[%emt 0:01:30]} Qc7 {[%emt 0:02:30]} 17. Rdg1+ {[%emt 0:05:30]} Ng6 {[%emt 0:00:30]} 18. Bxf5 $2 {[%emt 0:04:30]} (18. Qd2 $11 {and White stays safe.}) 18... Bxf4+ {[%emt 0:00:30]} 19. Kd1 $19 {[%emt 0:06:05]} Bd5 {[%emt 0:10:30]} 20. Rh3 {[%emt 0:00:57]} Bxh6 {[%emt 0:02:30]} 21. hxg6 {[%emt 0:01:26]} Qf4 {[%emt 0:04:30]} 22. gxf7+ {[%emt 0:05:18]} Kxf7 {[%emt 0:00:30]} 23. Rgg3 {[%emt 0:04:29]} Rg8 {[%emt 0:02:54]} 24. Bxh7 {[%emt 0:02:14]} Rg4 {[%emt 0:10:10]} 25. Bg6+ {[%emt 0:02:44]} Kf6 {[%emt 0:01:07]} 26. Rh5 {[%emt 0:03:01]} Bf3+ {[%emt 0:04:06]} 27. Ke1 {[%emt 0:00:12]} Rxg3 {[%emt 0:01:08]} 28. Rf5+ {[%emt 0:00:45]} Kg7 {[%emt 0:00:13]} 29. Rxf4 {[%emt 0:02:41]} Rg1+ {[%emt 0:00:38]} 30. Kd2 {[%emt 0:00:09]} Bxf4+ {[%emt 0:00:30]} 31. Kd3 {[%emt 0:00:30]} Bd1 0-1

[Event "World Junior U20 Open 2018"]
[Site "Gebze"]
[Date "2018.09.07"]
[Round "3.61"]
[White "Kamer, Kayra"]
[Black "Bashirli, Nail"]
[Result "1-0"]
[ECO "B56"]
[WhiteElo "2205"]
[BlackElo "2354"]
[Annotator "NA"]
[PlyCount "49"]
[EventDate "2018.09.05"]
[EventType "swiss"]
[EventCountry "TUR"]
[SourceTitle "playchess.com"]
[Source "ChessBase"]
[SourceQuality "1"]
[TimeControl "40/5400+30:1800+30"]

1. e4 {[%emt 0:00:30]} c5 {[%emt 0:00:30]} 2. Nf3 {[%emt 0:00:30]} d6 {[%emt 0:00:00]} 3. d4 {[%emt 0:00:00]} cxd4 {[%emt 0:00:00]} 4. Nxd4 {[%emt 0:00:00]} Nf6 {[%emt 0:00:00]} 5. Nc3 {[%emt 0:00:30]} Nc6 {[%emt 0:00:00]} 6. h3 {[%emt 0:02:30]} e6 {[%emt 0:13:30]} 7. g4 {[%emt 0:00:30]} Be7 {[%emt 0:09:30]} 8. g5 {[%emt 0:00:30]} Nd7 {[%emt 0:00:30]} 9. h4 {[%emt 0:01:30]} Nde5 {[%emt 0:03:30]} 10. Be3 {[%emt 0:01:30]} O-O {[%emt 0:05:30]} 11. f4 {[%emt 0:01:30]} Nxd4 {[%emt 0:00:00]} 12. Bxd4 {[%emt 0:00:30]} Nc6 {[%emt 0:00:00]} 13. Be3 {[%emt 0:00:30]} d5 {[%emt 0:01:30]} 14. exd5 {[%emt 0:00:30]} exd5 $11 {[%emt 0:01:30]} 15. Nxd5 {[%emt 0:01:30]} Re8 {[%emt 0:01:30]} 16. Kf2 {[%emt 0:00:30]} Bf5 {[%emt 0:06:30]} 17. Bg2 {[%emt 0:00:30]} Qa5 {[%emt 0:04:30]} 18. Qd2 {[%emt 0:09:30]} Qxd2+ {[%emt 0:05:30]} 19. Bxd2 {[%emt 0:00:30]} Bxc2 {[%emt 0:00:30]} 20. Nxe7+ {[%emt 0:00:30]} Rxe7 {[%emt 0:00:30]} 21. Rhe1 {[%emt 0:00:30]} Rd7 {[%emt 0:00:30]} 22. Bc3 {[%emt 0:00:00]} Ne7 {[%emt 0:06:30]} 23. Rac1 {[%emt 0:01:00]} Bd3 {[%emt 0:04:30]} 24. Rcd1 {[%emt 0:00:30]} Nf5 {[%emt 0:03:30]} 25. Bf1 {[%emt 0:00:30]} 1-0

[Event "World Junior U20 Open 2018"]
[Site "Gebze"]
[Date "2018.09.07"]
[Round "3.62"]
[White "Cirovic, Miroljub"]
[Black "Murzin, Volodar"]
[Result "1/2-1/2"]
[ECO "E88"]
[WhiteElo "2181"]
[BlackElo "2349"]
[Annotator "NA"]
[PlyCount "107"]
[EventDate "2018.09.05"]
[EventType "swiss"]
[EventCountry "TUR"]
[SourceTitle "playchess.com"]
[Source "ChessBase"]
[SourceQuality "1"]
[TimeControl "40/5400+30:1800+30"]

1. d4 {[%emt 0:00:30]} Nf6 {[%emt 0:00:30]} 2. c4 {[%emt 0:00:00]} g6 {[%emt 0:00:30]} 3. Nc3 {[%emt 0:00:00]} Bg7 {[%emt 0:00:00]} 4. e4 {[%emt 0:00:30]} O-O {[%emt 0:00:00]} 5. f3 {[%emt 0:00:00]} c6 {[%emt 0:00:00]} 6. Bd3 {[%emt 0:04:00]} d6 {[%emt 0:03:00]} 7. Nge2 {[%emt 0:00:30]} e5 {[%emt 0:01:30]} 8. d5 {[%emt 0:01:30]} cxd5 {[%emt 0:02:30]} 9. cxd5 {[%emt 0:00:30]} Nbd7 {[%emt 0:02:30]} 10. Be3 {[%emt 0:00:30]} Nc5 {[%emt 0:00:30]} 11. Bc2 {[%emt 0:01:30]} a5 {[%emt 0:06:30]} 12. a3 {[%emt 0:03:30]} Bd7 {[%emt 0:00:30]} 13. b4 {[%emt 0:01:30]} Na6 {[%emt 0:01:30]} 14. Rb1 {[%emt 0:01:30]} axb4 {[%emt 0:00:30]} 15. axb4 {[%emt 0:00:30]} Ne8 {[%emt 0:13:30]} 16. O-O {[%emt 0:03:30]} Nec7 {[%emt 0:05:30]} 17. Qd2 {[%emt 0:04:30]} Nb5 $14 {[%emt 0:00:30]} 18. Nxb5 {[%emt 0:04:30]} Bxb5 {[%emt 0:00:30]} 19. Bd3 {[%emt 0:00:30]} Nc7 {[%emt 0:00:30]} 20. Ra1 {[%emt 0:03:30]} Qd7 {[%emt 0:07:30]} 21. Nc3 {[%emt 0:01:30]} Rfc8 {[%emt 0:03:30]} 22. Nxb5 {[%emt 0:19:30]} Nxb5 {[%emt 0:00:30]} 23. Qb2 {[%emt 0:00:30]} Nd4 {[%emt 0:01:30]} 24. Rxa8 {[%emt 0:00:30]} Rxa8 {[%emt 0:00:30]} 25. Ra1 {[%emt 0:00:30]} Rf8 {[%emt 0:01:30]} 26. Rc1 {[%emt 0:00:30]} Qd8 {[%emt 0:00:30]} 27. b5 {[%emt 0:03:30]} Qb6 {[%emt 0:02:30]} 28. Kh1 {[%emt 0:03:30]} h5 {[%emt 0:00:30]} 29. Qc3 {[%emt 0:00:30]} Ra8 {[%emt 0:01:30]} 30. Ra1 {[%emt 0:02:30]} Rxa1+ {[%emt 0:01:30]} 31. Qxa1 {[%emt 0:00:30]} Qc5 {[%emt 0:00:30]} 32. Qb2 {[%emt 0:13:30]} Bf6 {[%emt 0:05:30]} 33. g3 {[%emt 0:03:30]} h4 {[%emt 0:01:30]} 34. Kg2 {[%emt 0:00:30]} Kg7 {[%emt 0:03:30]} 35. g4 {[%emt 0:01:30]} g5 {[%emt 0:01:30]} 36. Qc1 {[%emt 0:01:30]} Qxc1 {[%emt 0:00:30]} 37. Bxc1 {[%emt 0:00:30]} Kf8 {[%emt 0:00:30]} 38. Bd2 {[%emt 0:03:57]} Bd8 {[%emt 0:00:30]} 39. h3 {[%emt 0:01:55]} Ke8 {[%emt 0:01:30]} 40. Kf2 {[%emt 0:00:00]} Kd7 {[%emt 0:00:00]} 41. Bc3 {[%emt 0:09:08]} Nb3 {[%emt 0:02:00]} 42. Bc2 {[%emt 0:00:00]} Nd4 {[%emt 0:01:30]} 43. Bd3 {[%emt 0:04:00]} Kc7 {[%emt 0:00:30]} 44. Ba5+ {[%emt 0:00:30]} Kc8 {[%emt 0:00:00]} 45. Bb4 {[%emt 0:00:30]} Bb6 {[%emt 0:03:00]} 46. Kg2 {[%emt 0:04:30]} Kc7 {[%emt 0:00:00]} 47. Bd2 {[%emt 0:02:30]} f6 {[%emt 0:00:00]} 48. Bc3 {[%emt 0:00:30]} Nb3 {[%emt 0:00:30]} 49. Bc2 {[%emt 0:01:30]} Nc5 {[%emt 0:00:00]} 50. Bb4 {[%emt 0:00:30]} Nd7 {[%emt 0:00:00]} 51. Kf1 {[%emt 0:00:30]} Nf8 {[%emt 0:00:30]} 52. Bd3 {[%emt 0:01:30]} Ng6 {[%emt 0:00:30]} 53. Ke1 {[%emt 0:00:30]} Nf4 {[%emt 0:01:30]} 54. Bf1 {[%emt 0:00:30]} 1/2-1/2